bitfinex-derivatives/quotes_BTCF0:USTF0_20240830
["timestamp","ask_amount","ask_price","bid_price","bid_amount"]
[1725034037124,0.10263854,58371.0,58367.0,0.61184]
[1725034037327,0.10263854,58372.0,58371.0,0.085663]
[1725034037530,0.18829954,58373.0,58372.0,0.085661]
[1725034037720,0.01794708,58376.0,58367.0,0.6108]
[1725034037928,0.085661,58372.0,58367.0,0.446468]
[1725034038124,0.048761,58372.0,58369.0,0.001]
[1725034038426,0.085657,58375.0,58369.0,0.001]
[1725034038627,0.085658,58374.0,58373.0,0.3608]
[1725034039025,0.085662,58372.0,58367.0,0.3618]
[1725034039221,0.3608,58376.0,58368.0,0.085667]
[1725034039523,0.3608,58376.0,58367.0,0.3618]
[1725034039824,0.085667,58368.0,58367.0,0.3618]
[1725034040432,0.085667,58368.0,58367.0,0.3608]
[1725034041231,0.085667,58368.0,58367.0,0.3618]
[1725034041535,0.085667,58368.0,58367.0,0.001]
[1725034041924,0.085664,58370.0,58367.0,0.001]
[1725034042128,0.085667,58368.0,58367.0,0.001]
[1725034042330,0.421334,58368.0,58367.0,0.001]
[1725034043343,0.171346,58364.0,58363.0,0.00025713]
[1725034043635,0.07,58364.0,58346.0,0.3608]
[1725034043836,0.335698,58347.0,58346.0,0.3608]
[1725034044036,0.085708,58341.0,58339.0,0.3608]
[1725034044237,0.25,58340.0,58339.0,0.3608]
[1725034044833,0.25025713,58345.0,58339.0,0.3608]
[1725034045030,0.00025713,58345.0,58344.0,0.3608]
[1725034045238,0.00025713,58345.0,58344.0,1.046502]
[1725034045435,0.00025713,58345.0,58344.0,1.560702]
[1725034046737,0.00025713,58345.0,58344.0,1.646404]
[1725034047442,0.085682,58358.0,58357.0,0.085682]
[1725034047745,0.085682,58358.0,58357.0,0.446482]
[1725034048247,0.27391938,58364.0,58357.0,0.446482]
[1725034048248,0.085675,58363.0,58361.0,0.085677]
[1725034048441,0.01774616,58364.0,58357.0,0.3608]
[1725034048442,0.01774616,58364.0,58362.0,0.446476]
[1725034048642,0.01774616,58364.0,58357.0,0.447483]
[1725034048643,0.001,58358.0,58357.0,0.447483]
[1725034049155,0.33446112,58365.0,58357.0,0.3608]
[1725034049443,0.01770145,58365.0,58364.0,0.085673]
[1725034049645,0.085666,58369.0,58364.0,0.335672]
[1725034049842,0.25866961,58377.0,58368.0,0.3608]
[1725034050045,0.085662,58372.0,58368.0,0.446467]
[1725034050345,0.085662,58372.0,58368.0,0.3608]
[1725034050742,0.085665,58370.0,58368.0,0.3608]
[1725034050952,0.085666,58369.0,58368.0,0.3608]
[1725034051247,0.085673,58364.0,58363.0,0.3608]
[1725034051848,0.25,58367.0,58356.0,0.08594113]
[1725034051849,0.08568,58360.0,58356.0,0.08594113]
[1725034052037,0.08567,58366.0,58356.0,0.00025713]
[1725034052235,0.085677,58362.0,58356.0,0.00025713]
[1725034052440,0.08567,58366.0,58362.0,0.085676]
[1725034053446,0.02270709,58367.0,58365.0,0.3608]
[1725034053740,0.085665,58370.0,58368.0,0.085667]
[1725034053945,0.3608,58375.0,58368.0,0.085667]
[1725034054143,0.085661,58373.0,58368.0,0.085667]
[1725034054342,0.085661,58373.0,58365.0,0.3608]
[1725034054343,0.03309948,58372.0,58369.0,0.085666]
[1725034054544,0.085661,58372.0,58370.0,0.085664]
[1725034055149,0.3608,58375.0,58372.0,0.085661]
[1725034055350,0.03309831,58374.0,58368.0,0.251]
[1725034055651,0.38314878,58375.0,58370.0,0.001]
[1725034055854,0.03309812,58374.0,58373.0,0.08566]
[1725034056450,0.02234878,58375.0,58374.0,0.085658]
[1725034056652,0.11948994,58382.0,58371.0,0.3608]
[1725034056653,0.085649,58381.0,58372.0,0.25]
[1725034056955,0.03309432,58380.0,58379.0,0.085651]
[1725034057959,0.03309432,58380.0,58379.0,0.446451]
[1725034058257,0.02231241,58381.0,58379.0,0.446451]
[1725034058258,0.02231241,58381.0,58380.0,0.08565]
[1725034058458,0.3608,58387.0,58386.0,0.085641]
[1725034058653,0.0556594,58387.0,58386.0,0.085641]
[1725034058862,0.02256838,58387.0,58386.0,0.085641]
[1725034059052,0.19308,58394.0,58392.0,0.085632]
[1725034059253,0.03308725,58393.0,58389.0,0.085636]
[1725034059556,0.19308,58394.0,58389.0,0.085636]
[1725034059759,0.21573297,58394.0,58389.0,0.085636]
[1725034059955,0.30136197,58394.0,58390.0,0.085634]
[1725034060161,0.30136197,58394.0,58391.0,0.085633]
[1725034060162,0.03308756,58393.0,58391.0,0.085633]
[1725034060454,0.21573297,58394.0,58393.0,0.08563]
[1725034060455,0.02265297,58394.0,58393.0,0.08563]
[1725034060650,0.3608,58403.0,58392.0,0.25]
[1725034060857,0.42126,58393.0,58392.0,0.00025691]
[1725034061048,0.085644,58384.0,58383.0,0.3286]
[1725034061251,0.085651,58379.0,58378.0,0.3608]
[1725034062552,0.02231835,58379.0,58378.0,0.3608]
[1725034062860,0.1132,58383.0,58378.0,0.447452]
[1725034063056,0.00025616,58384.0,58378.0,0.447452]
[1725034063457,0.085651,58379.0,58378.0,0.3618]
[1725034063962,0.335651,58379.0,58378.0,0.3618]
[1725034064151,0.085658,58374.0,58373.0,0.00025691]
[1725034065356,0.085655,58377.0,58373.0,0.00025691]
[1725034065759,0.001,58374.0,58373.0,0.08691691]
[1725034066158,0.001,58374.0,58373.0,1.53649691]
[1725034066666,0.00025616,58384.0,58383.0,0.085645]
[1725034066863,0.08554047,58384.0,58383.0,0.446445]
[1725034067168,0.08590016,58384.0,58383.0,0.3608]
[1725034067667,0.10855257,58384.0,58383.0,0.3608]
[1725034068064,0.02290857,58384.0,58383.0,0.446445]
[1725034068366,0.02490857,58384.0,58383.0,0.447445]
[1725034068969,0.02490857,58384.0,58383.0,0.560045]
[1725034069173,0.19580848,58384.0,58383.0,0.3618]
[1725034069464,0.11055257,58384.0,58383.0,0.3618]
[1725034069667,0.19579822,58384.0,58383.0,0.3618]
[1725034069965,0.19579822,58384.0,58383.0,0.001]
[1725034069966,0.47135257,58384.0,58383.0,0.001]
[1725034070165,0.21285301,58384.0,58383.0,0.001]
[1725034070665,0.02490857,58384.0,58383.0,0.086645]
[1725034071470,0.02490857,58384.0,58383.0,0.001]
[1725034071872,0.27490857,58384.0,58383.0,0.001]
[1725034072060,0.085658,58374.0,58373.0,0.00025691]
[1725034072258,0.335658,58374.0,58373.0,0.00025691]
[1725034072461,0.421316,58374.0,58373.0,0.00025691]
[1725034072660,1.22701392,58374.0,58363.0,0.08604]
[1725034072864,0.085673,58364.0,58363.0,0.08604]
[1725034073170,0.085673,58364.0,58361.0,0.3608]
[1725034073370,0.33567,58366.0,58362.0,0.085676]
[1725034073669,0.085676,58362.0,58361.0,0.3608]
[1725034074064,0.335676,58362.0,58361.0,0.3608]
[1725034074873,0.335676,58362.0,58361.0,0.3618]
[1725034077675,0.696476,58362.0,58361.0,0.001]
[1725034077873,0.08568,58359.0,58358.0,0.00025691]
[1725034078062,0.18811659,58359.0,58348.0,0.414296]
[1725034078263,0.25,58349.0,58347.0,0.3608]
[1725034078463,0.25,58349.0,58335.0,0.3608]
[1725034078464,0.6108,58349.0,58335.0,0.3608]
[1725034078774,0.085714,58336.0,58335.0,0.3608]
[1725034079273,0.25,58339.0,58335.0,0.3608]
[1725034079767,0.27227204,58339.0,58335.0,0.36071046]
[1725034080167,0.25,58338.0,58336.0,0.085714]
[1725034080372,0.25,58338.0,58335.0,0.36071046]
[1725034080677,0.085722,58331.0,58330.0,0.00025713]
[1725034080971,0.25,58332.0,58330.0,0.00025713]
[1725034081166,0.33572,58332.0,58330.0,0.00025713]
[1725034081363,0.25,58332.0,58330.0,0.00025713]
[1725034082076,0.00025713,58337.0,58336.0,0.085714]
[1725034082575,0.00025713,58337.0,58335.0,0.3608]
[1725034082770,0.085714,58336.0,58335.0,0.3608]
[1725034083276,0.085717,58334.0,58330.0,0.00125713]
[1725034083470,0.25,58332.0,58331.0,0.085722]
[1725034083971,0.25,58332.0,58330.0,0.00125713]
[1725034084461,0.25,58336.0,58330.0,0.00125713]
[1725034084667,0.00025713,58337.0,58336.0,0.085714]
[1725034085162,0.00325713,58337.0,58336.0,0.086714]
[1725034085570,0.00325713,58337.0,58336.0,0.085714]
[1725034085571,0.00025713,58337.0,58336.0,0.085714]
[1725034086377,0.00325713,58337.0,58336.0,0.086714]
[1725034088481,0.00225713,58337.0,58336.0,0.086714]
[1725034089282,0.00225713,58337.0,58336.0,0.172428]
[1725034089881,0.00125713,58337.0,58336.0,1.286668]
[1725034090675,1.3e-07,58337.0,58336.0,1.372382]
[1725034091378,0.40068,58368.0,58336.0,1.372382]
[1725034091379,0.17148,58369.0,58337.0,0.51424]
[1725034091678,0.08567,58367.0,58366.0,0.3608]
[1725034092779,0.02232126,58369.0,58368.0,0.085667]
[1725034092980,0.085666,58370.0,58368.0,0.085667]
[1725034093167,0.3607,58375.0,58368.0,0.085667]
[1725034093168,0.085666,58369.0,58368.0,0.085667]
[1725034093578,0.38314817,58375.0,58368.0,0.3608]
[1725034093579,0.27244817,58375.0,58368.0,0.3608]
[1725034093787,0.02244817,58375.0,58374.0,0.446458]
[1725034094083,0.085638,58388.0,58379.0,0.085651]
[1725034094084,0.25,58384.0,58379.0,0.085651]
[1725034094376,0.085644,58384.0,58381.0,0.446448]
[1725034094678,0.25,58385.0,58381.0,0.3608]
[1725034094979,0.25,58385.0,58376.0,0.00025713]
[1725034094980,1.36384,58385.0,58376.0,0.00025713]
[1725034095173,0.38341739,58386.0,58376.0,0.00025713]
[1725034095174,0.25,58377.0,58376.0,0.00025713]
[1725034096378,0.25,58377.0,58376.0,0.00125713]
[1725034097084,0.335654,58377.0,58376.0,0.00125713]
[1725034097379,0.085664,58371.0,58365.0,0.414271]
[1725034097679,0.00841227,58378.0,58361.0,0.3608]
[1725034097680,0.25,58368.0,58361.0,0.3608]
[1725034097888,0.25,58362.0,58361.0,0.3608]
[1725034098685,0.25,58366.0,58361.0,0.3608]
[1725034098872,0.25,58366.0,58362.0,0.085675]
[1725034099074,0.00025713,58367.0,58366.0,0.08567]
[1725034099279,0.00025713,58367.0,58366.0,0.69647]
[1725034099578,0.00025713,58367.0,58366.0,0.44647]
[1725034100377,0.10773767,58367.0,58366.0,0.3608]
[1725034100577,0.08592613,58367.0,58366.0,0.3608]
[1725034101284,0.08592613,58367.0,58361.0,0.3618]
[1725034101285,1.11425713,58367.0,58361.0,0.3618]
[1725034101477,1.11425713,58367.0,58361.0,0.3608]
[1725034101478,0.25,58362.0,58361.0,0.3608]
[1725034102083,0.335671,58366.0,58361.0,0.3608]
[1725034102477,0.25,58362.0,58361.0,0.3608]
[1725034102678,0.252,58362.0,58361.0,0.3618]
[1725034102879,0.423352,58362.0,58361.0,0.001]
[1725034103481,0.337676,58362.0,58361.0,0.001]
[1725034104387,0.09872193,58363.0,58361.0,0.001]
[1725034104692,0.0137,58363.0,58362.0,0.085676]
[1725034105682,0.0147,58363.0,58362.0,0.085676]
[1725034106377,0.0147,58363.0,58362.0,0.001]
[1725034106585,0.2647,58363.0,58362.0,0.001]
[1725034107188,0.0147,58363.0,58362.0,0.086676]
[1725034108191,0.0147,58363.0,58362.0,0.336676]
[1725034108684,0.0147,58363.0,58362.0,0.508028]
[1725034108991,0.0147,58363.0,58362.0,1.622068]
[1725034109195,0.00025713,58367.0,58366.0,0.17134]
[1725034109495,0.00025713,58367.0,58366.0,0.78214]
[1725034109697,0.00025713,58367.0,58366.0,1.98181]
[1725034110399,0.085641,58386.0,58384.0,0.085644]
[1725034110587,0.085641,58386.0,58385.0,0.3608]
[1725034110785,0.099341,58386.0,58385.0,0.3608]
[1725034110989,0.12127022,58386.0,58385.0,0.3608]
[1725034111402,0.12127022,58386.0,58385.0,0.446442]
[1725034111403,0.03562922,58386.0,58385.0,0.446442]
[1725034112102,0.03562922,58386.0,58385.0,0.447442]
[1725034112288,0.03562922,58386.0,58385.0,0.697442]
[1725034112493,0.03562922,58386.0,58385.0,0.447442]
[1725034114497,0.03562922,58386.0,58385.0,0.446442]
[1725034114700,0.03562922,58386.0,58385.0,0.447442]
[1725034117302,0.03562922,58386.0,58385.0,0.4453834]
[1725034117891,0.03562922,58386.0,58385.0,0.4443834]
[1725034118101,0.03562922,58386.0,58385.0,0.4453834]
[1725034119299,0.03562922,58386.0,58385.0,0.6953834]
[1725034120295,0.03562922,58386.0,58385.0,0.7810254]
[1725034120899,0.03562922,58386.0,58385.0,0.4453834]
[1725034121104,0.12127022,58386.0,58385.0,0.4453834]
[1725034121801,0.12127022,58386.0,58385.0,0.4443834]
[1725034122307,0.03562922,58386.0,58385.0,0.001]
[1725034122502,0.20691122,58386.0,58385.0,0.001]
[1725034123004,0.72075122,58386.0,58385.0,0.001]
[1725034123199,1.32075122,58386.0,58385.0,0.001]
[1725034123508,1.68155122,58386.0,58385.0,0.001]
[1725034123808,0.085648,58381.0,58380.0,0.00025691]
[1725034124005,0.42088812,58381.0,58380.0,0.00025691]
[1725034124399,0.42088976,58381.0,58380.0,0.00025691]
[1725034124911,0.42088976,58381.0,58371.0,0.3608]
[1725034124912,0.085661,58372.0,58371.0,0.3608]
[1725034125207,0.08567,58366.0,58364.0,0.3608]
[1725034125506,0.696458,58374.0,58364.0,0.3608]
[1725034125507,0.085672,58365.0,58364.0,0.3608]
[1725034126507,0.099372,58365.0,58364.0,0.3608]
[1725034127011,0.099372,58365.0,58364.0,0.3618]
[1725034127012,0.113372,58365.0,58364.0,0.3618]
[1725034127308,0.96261374,58365.0,58364.0,0.3618]
[1725034128104,0.96461374,58365.0,58364.0,0.3628]
[1725034128302,0.45061374,58365.0,58364.0,0.3628]
[1725034128497,0.47891341,58365.0,58364.0,0.3628]
[1725034128701,0.39367167,58365.0,58364.0,0.3628]
[1725034128905,0.05799967,58365.0,58364.0,0.448473]
[1725034129211,0.05799967,58365.0,58364.0,0.962473]
[1725034129915,0.05799967,58365.0,58364.0,0.448473]
[1725034131114,0.05799967,58365.0,58364.0,0.44759343]
[1725034131314,0.085667,58369.0,58365.0,0.085671]
[1725034131510,0.085667,58369.0,58366.0,0.08567]
[1725034131715,0.17090477,58369.0,58366.0,0.08567]
[1725034132203,0.17090477,58369.0,58364.0,0.36192043]
[1725034132204,0.085667,58369.0,58367.0,0.085668]
[1725034132404,0.11258353,58371.0,58364.0,0.36192043]
[1725034132610,0.11258353,58371.0,58369.0,0.3608]
[1725034132805,0.02734576,58371.0,58370.0,0.085664]
[1725034133010,0.09893777,58372.0,58370.0,0.085664]
[1725034133204,0.33523777,58371.0,58369.0,0.3608]
[1725034133507,0.085664,58370.0,58369.0,0.3608]
[1725034133709,0.17092955,58370.0,58369.0,0.3608]
[1725034133916,0.085664,58370.0,58369.0,0.3608]
[1725034134609,0.085664,58370.0,58369.0,0.3618]
[1725034135007,0.0137,58372.0,58369.0,0.3618]
[1725034135206,0.0137,58372.0,58369.0,0.3608]
[1725034135409,0.08528871,58371.0,58370.0,0.085663]
[1725034135903,0.09898871,58372.0,58371.0,0.085663]
[1725034136324,0.04141845,58372.0,58371.0,0.085663]
[1725034137615,0.04141845,58372.0,58371.0,0.171326]
[1725034137915,0.04141845,58372.0,58371.0,0.421326]
[1725034138510,0.04141845,58372.0,58371.0,0.085663]
[1725034139421,0.04141845,58372.0,58371.0,0.086663]
[1725034141017,0.12707945,58372.0,58371.0,0.086663]
[1725034141516,0.12707945,58372.0,58371.0,0.087663]
[1725034141912,0.04141845,58372.0,58371.0,0.087663]
[1725034142519,0.04141845,58372.0,58371.0,0.173326]
[1725034142913,0.04141845,58372.0,58371.0,0.258989]
[1725034143123,0.08528871,58380.0,58379.0,0.171302]
[1725034143326,0.10227422,58384.0,58381.0,0.085648]
[1725034143327,0.08528871,58384.0,58381.0,0.085648]
[1725034143514,0.08528871,58384.0,58383.0,0.335645]
[1725034143832,0.10227422,58389.0,58384.0,0.085644]
[1725034144019,0.10227422,58389.0,58379.0,0.97268]
[1725034144020,0.18791322,58387.0,58386.0,0.3608]
[1725034144518,0.18802222,58387.0,58386.0,0.3608]
[1725034144908,0.085639,58387.0,58386.0,0.3608]
[1725034145110,0.18802232,58387.0,58386.0,0.3608]
[1725034145312,0.085644,58384.0,58383.0,0.001]
[1725034145518,0.335644,58384.0,58383.0,0.001]
[1725034146019,0.085644,58384.0,58383.0,0.001]
[1725034146723,0.085644,58384.0,58381.0,0.3608]
[1725034146925,0.10240428,58383.0,58382.0,0.085646]
[1725034147120,0.10240428,58386.0,58385.0,0.085642]
[1725034147318,0.04182994,58388.0,58384.0,0.2215]
[1725034147511,0.04182994,58388.0,58387.0,0.696439]
[1725034147714,0.12715636,58388.0,58387.0,0.696439]
[1725034147917,0.12715636,58388.0,58387.0,0.446439]
[1725034148211,0.04182994,58388.0,58387.0,0.446439]
[1725034148824,0.12746794,58388.0,58387.0,0.446439]
[1725034149120,0.22987222,58388.0,58387.0,0.3618]
[1725034149624,0.14423422,58388.0,58387.0,0.3618]
[1725034150217,0.04182994,58388.0,58387.0,0.447439]
[1725034151027,0.04182994,58388.0,58387.0,0.448439]
[1725034151338,0.12746794,58388.0,58387.0,0.3628]
[1725034151621,0.14423422,58388.0,58387.0,0.3628]
[1725034151824,0.14423422,58388.0,58387.0,0.448439]
[1725034151825,0.04182994,58388.0,58387.0,0.448439]
[1725034152527,0.04182994,58388.0,58387.0,0.698439]
[1725034152823,0.0137,58388.0,58387.0,0.698439]
[1725034153218,0.09904432,58388.0,58387.0,0.448439]
[1725034153622,0.0137,58388.0,58387.0,0.448439]
[1725034156227,0.099338,58388.0,58387.0,0.3628]
[1725034156526,0.099338,58388.0,58387.0,0.448439]
[1725034156926,0.0137,58388.0,58387.0,0.448439]
[1725034157522,0.09904432,58388.0,58387.0,0.448439]
[1725034157727,0.18468232,58388.0,58387.0,0.448439]
[1725034158229,0.09904432,58388.0,58387.0,0.448439]
[1725034159328,0.18468232,58388.0,58387.0,0.448439]
[1725034160428,0.099338,58388.0,58387.0,0.448439]
[1725034160825,0.099338,58388.0,58387.0,0.3628]
[1725034162631,0.20177057,58388.0,58387.0,0.3628]
[1725034163936,0.099338,58388.0,58387.0,0.3628]
[1725034164536,0.099338,58388.0,58387.0,0.448439]
[1725034164725,0.0137,58388.0,58387.0,0.448439]
[1725034165427,0.11613257,58388.0,58387.0,0.3628]
[1725034165623,0.099338,58388.0,58387.0,0.3628]
[1725034166035,0.33242616,58388.0,58387.0,0.3628]
[1725034166339,0.41806416,58388.0,58387.0,0.3628]
[1725034166528,0.41806416,58388.0,58381.0,0.446448]
[1725034166529,0.085647,58382.0,58381.0,0.446448]
[1725034166725,0.1024968,58383.0,58382.0,0.085647]
[1725034166925,0.1024968,58383.0,58381.0,0.3608]
[1725034166926,0.10250131,58384.0,58381.0,0.3608]
[1725034167130,0.10250131,58385.0,58384.0,0.085644]
[1725034167334,0.085647,58382.0,58381.0,0.3608]
[1725034167534,0.171294,58382.0,58381.0,0.3608]
[1725034167827,0.171294,58382.0,58381.0,0.3618]
[1725034168136,0.36873855,58382.0,58381.0,0.3618]
[1725034168331,0.45438555,58382.0,58381.0,0.3618]
[1725034168629,0.38243855,58382.0,58381.0,0.3628]
[1725034169429,0.21808555,58382.0,58381.0,0.3628]
[1725034169633,0.46808555,58382.0,58381.0,0.3628]
[1725034169823,1.58196555,58382.0,58381.0,0.35427517]
[1725034170421,1.58296555,58382.0,58381.0,0.28027517]
[1725034170725,0.17131,58376.0,58375.0,0.3608]
[1725034170920,0.42131,58376.0,58375.0,0.3608]
[1725034171229,0.085657,58375.0,58374.0,0.00025691]
[1725034171429,0.171314,58375.0,58374.0,0.00025691]
[1725034171625,0.03309635,58375.0,58369.0,0.3608]
[1725034171828,0.6108,58376.0,58363.0,0.3608]
[1725034171829,0.696464,58370.0,58363.0,0.3608]
[1725034172027,0.25,58365.0,58363.0,0.3608]
[1725034172335,0.25,58365.0,58364.0,0.085673]
[1725034172937,0.085669,58367.0,58364.0,0.085673]
[1725034173733,0.11364047,58367.0,58365.0,0.085671]
[1725034174236,0.02797147,58367.0,58366.0,0.08567]
[1725034174432,0.0853498,58367.0,58366.0,0.17134]
[1725034174632,0.0853498,58372.0,58371.0,0.085663]
[1725034174831,0.0853498,58373.0,58372.0,0.171322]
[1725034175135,0.0853498,58375.0,58374.0,0.171316]
[1725034175338,0.0853498,58375.0,58374.0,0.421316]
[1725034175733,0.0853498,58375.0,58374.0,0.085658]
[1725034176428,0.0853498,58375.0,58374.0,1.535236]
[1725034177235,0.0873498,58375.0,58374.0,1.536236]
[1725034177428,0.002,58375.0,58374.0,1.536236]
[1725034177824,0.002,58375.0,58374.0,1.450578]
[1725034178029,0.003,58375.0,58374.0,0.851578]
[1725034178435,0.003,58375.0,58374.0,0.601578]
[1725034178639,0.003,58375.0,58374.0,0.087658]
[1725034178837,0.088657,58375.0,58374.0,0.002]
[1725034179137,0.338657,58375.0,58374.0,0.002]
[1725034179633,0.003,58375.0,58374.0,0.087658]
[1725034179837,0.03145477,58375.0,58374.0,0.087658]
[1725034180031,0.003,58375.0,58374.0,0.087658]
[1725034181026,0.003,58375.0,58374.0,0.196958]
[1725034182142,0.003,58375.0,58374.0,0.300958]
[1725034184349,0.003,58375.0,58374.0,0.386616]
[1725034184844,0.003,58375.0,58374.0,0.385616]
[1725034185437,0.02825291,58378.0,58377.0,0.085654]
[1725034185642,0.02825291,58378.0,58377.0,0.446454]
[1725034186440,0.00025691,58378.0,58377.0,0.617762]
[1725034187040,0.00200091,58378.0,58377.0,1.818296]
[1725034187635,9.1e-07,58378.0,58377.0,1.818296]
[1725034187840,9.1e-07,58378.0,58377.0,1.84980009]
[1725034188040,9.1e-07,58378.0,58377.0,2.04980009]
[1725034188852,0.0137,58382.0,58381.0,0.256944]
[1725034189046,1e-06,58382.0,58381.0,0.903392]
[1725034189243,1e-06,58382.0,58381.0,2.017272]
[1725034189542,1e-06,58382.0,58381.0,4.687272]
[1725034189746,0.11952809,58398.0,58388.0,0.085638]
[1725034189942,0.14996114,58398.0,58397.0,0.9216]
[1725034190251,0.14996114,58398.0,58397.0,1.09285]
[1725034190750,0.14996114,58398.0,58397.0,1.007225]
[1725034191139,0.23558414,58398.0,58397.0,0.807225]
[1725034191342,0.23658414,58398.0,58397.0,0.808225]
[1725034191644,0.23658414,58398.0,58397.0,0.7226]
[1725034191645,0.43658414,58398.0,58397.0,0.7226]
[1725034191940,0.62800714,58398.0,58397.0,0.7226]
[1725034192253,0.55847905,58398.0,58397.0,0.3618]
[1725034192446,1.58657605,58398.0,58397.0,0.343896]
[1725034193252,0.98657605,58398.0,58397.0,0.343896]
[1725034195052,0.47285605,58398.0,58397.0,0.343896]
[1725034195456,0.22285605,58398.0,58397.0,0.343896]
[1725034195843,0.22285605,58398.0,58397.0,0.429521]
[1725034196047,0.03143305,58398.0,58397.0,0.429521]
[1725034196841,0.03143305,58398.0,58397.0,0.638821]
[1725034197238,0.03143305,58398.0,58397.0,1.190946]
[1725034197551,0.085606,58410.0,58408.0,0.085608]
[1725034197748,0.25,58410.0,58407.0,0.3608]
[1725034197949,0.25,58410.0,58403.0,0.00025691]
[1725034198151,0.25,58405.0,58403.0,0.36105691]
[1725034198451,0.085614,58404.0,58403.0,0.36105691]
[1725034199846,0.085614,58404.0,58403.0,0.36205691]
[1725034200045,1.284908,58404.0,58403.0,0.001]
[1725034200352,0.085622,58399.0,58398.0,0.3286]
[1725034200941,0.0991,58404.0,58399.0,0.085622]
[1725034201150,0.085622,58399.0,58398.0,0.3286]
[1725034201550,0.085618,58402.0,58399.0,0.08562]
[1725034201853,0.085619,58401.0,58399.0,0.08562]
[1725034202250,0.085619,58401.0,58400.0,0.08562]
[1725034202958,0.001,58399.0,58398.0,0.002]
[1725034203163,0.086622,58399.0,58398.0,0.002]
[1725034203356,0.001,58399.0,58398.0,0.087623]
[1725034203754,0.002,58401.0,58400.0,0.08662]
[1725034203952,0.002,58401.0,58400.0,0.33662]
[1725034205460,0.002,58401.0,58400.0,0.08762]
[1725034205856,0.173238,58401.0,58400.0,0.002]
[1725034206054,0.20155921,58401.0,58400.0,0.001]
[1725034206359,0.11594021,58401.0,58400.0,0.001]
[1725034206862,0.11694021,58401.0,58400.0,0.002]
[1725034207355,0.45255921,58401.0,58400.0,0.002]
[1725034207551,0.9993215,58401.0,58400.0,0.002]
[1725034207757,1.5993215,58401.0,58400.0,0.002]
[1725034208154,0.171246,58398.0,58397.0,0.341896]
[1725034208460,0.17125,58397.0,58396.0,0.00025691]
[1725034208648,0.171276,58388.0,58381.0,0.3608]
[1725034209163,0.085647,58382.0,58381.0,0.3608]
[1725034209956,0.193647,58382.0,58381.0,0.3608]
[1725034210357,0.194647,58382.0,58381.0,0.3618]
[1725034211961,0.001,58382.0,58381.0,0.447448]
[1725034212355,0.03111738,58382.0,58381.0,0.447448]
[1725034212555,0.03311738,58382.0,58381.0,0.447448]
[1725034212754,0.003,58382.0,58381.0,1.561328]
[1725034214260,0.003,58382.0,58381.0,0.447448]
[1725034214958,0.088647,58382.0,58381.0,0.447448]
[1725034215157,0.003,58382.0,58381.0,0.447448]
[1725034216458,0.003,58382.0,58381.0,0.3618]
[1725034216459,0.088647,58382.0,58381.0,0.3618]
[1725034216662,0.174294,58382.0,58381.0,0.3618]
[1725034216854,0.27676271,58382.0,58381.0,0.3618]
[1725034217670,0.174294,58382.0,58381.0,0.3618]
[1725034217856,0.688174,58382.0,58381.0,0.3618]
[1725034218259,0.174294,58382.0,58381.0,0.3618]
[1725034218454,0.688174,58382.0,58381.0,0.001]
[1725034218660,0.688174,58382.0,58376.0,0.00025691]
[1725034218661,0.171308,58377.0,58376.0,0.00025691]
[1725034218964,0.52374985,58377.0,58376.0,0.00025691]
[1725034219168,0.52374985,58377.0,58369.0,0.3608]
[1725034219169,0.085664,58370.0,58369.0,0.3608]
[1725034220063,0.17097569,58370.0,58369.0,0.3608]
[1725034221157,0.20237915,58370.0,58369.0,0.3608]
[1725034221358,0.03140346,58370.0,58369.0,0.3608]
[1725034221561,0.085663,58371.0,58369.0,0.696466]
[1725034221767,0.08531169,58372.0,58369.0,0.6108]
[1725034221961,0.08531169,58373.0,58369.0,0.6168]
[1725034222162,0.03116894,58373.0,58369.0,0.6168]
[1725034222357,0.08531169,58374.0,58373.0,0.08566]
[1725034222560,0.08531169,58375.0,58374.0,0.085658]
[1725034222869,0.08531169,58376.0,58369.0,0.6168]
[1725034223072,0.08531169,58376.0,58369.0,0.6108]
[1725034223372,0.005,58373.0,58372.0,0.085661]
[1725034223671,0.005,58373.0,58372.0,0.421322]
[1725034223860,0.001,58373.0,58372.0,1.535282]
[1725034224167,0.001,58373.0,58372.0,0.421322]
[1725034224963,0.001,58373.0,58372.0,0.085661]
[1725034225161,0.03185301,58373.0,58372.0,0.085661]
[1725034225361,0.004,58376.0,58370.0,0.085663]
[1725034225565,0.085663,58371.0,58370.0,0.085663]
[1725034225767,0.085657,58375.0,58369.0,0.7228]
[1725034225768,0.006,58373.0,58369.0,0.7228]
[1725034225967,0.25,58372.0,58369.0,0.3608]
[1725034226161,0.085664,58370.0,58369.0,0.3608]
[1725034226373,0.17097569,58370.0,58369.0,0.3608]
[1725034226972,0.085672,58365.0,58364.0,0.00025691]
[1725034227863,0.085672,58365.0,58364.0,0.36105691]
[1725034228372,0.085672,58365.0,58364.0,0.44672991]
[1725034228576,0.085672,58365.0,58364.0,0.36105691]
[1725034228770,0.11726715,58365.0,58364.0,0.36105691]
[1725034229275,0.11726715,58365.0,58364.0,0.00025691]
[1725034229571,0.03159515,58365.0,58355.0,0.0933]
[1725034229762,0.25,58360.0,58353.0,0.3608]
[1725034230168,0.33568,58360.0,58353.0,0.3608]
[1725034230366,0.085682,58358.0,58354.0,0.085687]
[1725034230574,0.073682,58358.0,58354.0,0.085687]
[1725034230769,0.25,58360.0,58355.0,0.085686]
[1725034230973,0.085682,58359.0,58355.0,0.085686]
[1725034231173,0.085682,58358.0,58355.0,0.085686]
[1725034231574,0.25,58364.0,58353.0,0.3608]
[1725034231770,0.25,58364.0,58358.0,0.3608]
[1725034232271,0.08568,58359.0,58358.0,0.3608]
[1725034233379,0.08568,58359.0,58358.0,0.3648]
[1725034235265,0.08568,58359.0,58358.0,0.3638]
[1725034235467,0.08568,58359.0,58351.0,0.00025691]